[Event "SVK Amateur-ch 2020"]
[Site "Topolcany"]
[Date "2020.07.13"]
[Round "6.32"]
[White "Musial, Tomasz"]
[Black "Vargyas, Zoltan"]
[Result "1-0"]
[ECO "E12"]
[WhiteElo "1946"]
[BlackElo "2023"]
[Annotator "ChessBase"]
[PlyCount "53"]
[EventDate "2020.07.10"]
[EventType "swiss"]
[EventCountry "SVK"]
[SourceTitle "playchess.com"]
[Source "ChessBase"]
[SourceQuality "1"]
[TimeControl "3600+30"]

1. d4 {[%emt 0:00:00]} Nf6 {[%emt 0:00:00]} 2. c4 {[%emt 0:00:00]} e6 {[%emt 0:00:00]} 3. Nf3 {[%emt 0:00:00]} b6 {[%emt 0:00:00]} 4. Bf4 {[%emt 0:00:30]} Bb4+ {[%emt 0:01:22]} 5. Nfd2 {[%emt 0:00:30]} O-O {[%emt 0:02:36]} 6. a3 {[%emt 0:00:29]} Be7 {[%emt 0:02:39]} 7. e4 {[%emt 0:03:40]} Nc6 {[%emt 0:05:25]} 8. d5 {[%emt 0:06:54]} Nb8 {[%emt 0:14:52]} 9. Nc3 {[%emt 0:08:45]} d6 {[%emt 0:00:31]} 10. Be2 {[%emt 0:00:40]} c6 {[%emt 0:04:16]} 11. b4 {[%emt 0:03:54]} Bb7 {[%emt 0:02:32]} 12. Nb3 {[%emt 0:01:54]} cxd5 {[%emt 0:03:30]} 13. cxd5 {[%emt 0:00:41]} exd5 {[%emt 0:00:55]} 14. exd5 {[%emt 0:01:39]} Nbd7 {[%emt 0:00:16]} 15. O-O {[%emt 0:01:34]} Rc8 {[%emt 0:03:24]} 16. Qd2 {[%emt 0:04:28]} Ne5 {[%emt 0:04:15]} 17. Rac1 {[%emt 0:02:37]} Qd7 {[%emt 0:08:31]} 18. Bb5 {[%emt 0:06:33]} Qg4 {[%emt 0:03:18]} 19. f3 {[%emt 0:00:34]} Qh5 {[%emt 0:01:11]} 20. Rfd1 {[%emt 0:09:45]} Rfd8 {[%emt 0:03:22]} 21. Qe2 {[%emt 0:01:53]} Rxc3 {[%emt 0:03:34]} 22. Rxc3 {[%emt 0:00:10]} Nxd5 {[%emt 0:00:07]} 23. Bxe5 {[%emt 0:00:34]} dxe5 {[%emt 0:02:53]} 24. Rcd3 {[%emt 0:06:05]} Qg5 {[%emt 0:01:23]} 25. Qd2 {[%emt 0:00:41]} e4 {[%emt 0:01:06]} 26. Qxg5 {[%emt 0:00:48]} Bxg5 {[%emt 0:00:12]} 27. fxe4 {[%emt 0:00:06]} 1-0

[Event "SVK Amateur-ch 2020"]
[Site "Topolcany"]
[Date "2020.07.13"]
[Round "7.1"]
[White "Cedzo, Adam"]
[Black "Bakalar, Jan"]
[Result "1-0"]
[ECO "B28"]
[WhiteElo "1974"]
[BlackElo "1896"]
[Annotator "ChessBase"]
[PlyCount "28"]
[EventDate "2020.07.10"]
[EventType "swiss"]
[EventCountry "SVK"]
[SourceTitle "playchess.com"]
[Source "ChessBase"]
[SourceQuality "1"]
[TimeControl "3600+30"]

1. e4 {[%emt 0:00:00]} c5 {[%emt 0:00:00]} 2. Nf3 {[%emt 0:00:00]} a6 {[%emt 0:00:00]} 3. d4 {[%emt 0:00:00]} cxd4 {[%emt 0:00:05]} 4. Nxd4 {[%emt 0:00:05]} Nf6 {[%emt 0:00:23]} 5. Nc3 {[%emt 0:00:14]} e5 {[%emt 0:00:11]} 6. Nf5 {[%emt 0:00:55]} d5 {[%emt 0:00:11]} 7. Bg5 {[%emt 0:05:19]} d4 {[%emt 0:05:57]} 8. Bxf6 {[%emt 0:08:03]} gxf6 {[%emt 0:05:36]} 9. Ne2 {[%emt 0:07:00]} Qb6 {[%emt 0:02:25]} 10. Rb1 {[%emt 0:01:20]} Bxf5 {[%emt 0:08:29]} 11. exf5 {[%emt 0:02:43]} Nc6 {[%emt 0:00:44]} 12. a3 {[%emt 0:01:22]} O-O-O {[%emt 0:00:51]} 13. Ng3 {[%emt 0:01:06]} Bh6 {[%emt 0:06:16]} 14. Bd3 {[%emt 0:10:17]} Qa5+ {[%emt 0:00:19]} 1-0

[Event "SVK Amateur-ch 2020"]
[Site "Topolcany"]
[Date "2020.07.13"]
[Round "7.2"]
[White "Kubrican, Anton"]
[Black "Ihnat Marek ml."]
[Result "0-1"]
[ECO "D79"]
[WhiteElo "1861"]
[BlackElo "2065"]
[Annotator "RC"]
[PlyCount "124"]
[EventDate "2020.07.10"]
[EventType "swiss"]
[EventCountry "SVK"]
[SourceTitle "playchess.com"]
[Source "ChessBase"]
[SourceQuality "1"]
[TimeControl "3600+30"]

1. g3 {[%emt 0:00:00]} Nf6 {[%emt 0:00:00]} 2. Bg2 {[%emt 0:00:00]} g6 {[%emt 0:00:00]} 3. d4 {[%emt 0:00:36]} d5 {[%emt 0:00:16]} 4. Nf3 {[%emt 0:00:45]} Bg7 {[%emt 0:00:06]} 5. O-O {[%emt 0:00:07]} O-O {[%emt 0:00:05]} 6. Bf4 {[%emt 0:00:44]} c5 {[%emt 0:00:47]} 7. c3 {[%emt 0:01:12]} Nc6 {[%emt 0:01:05]} 8. Ne5 {[%emt 0:03:40]} cxd4 {[%emt 0:03:40]} 9. cxd4 {[%emt 0:01:03]} Qb6 {[%emt 0:01:50]} 10. Nxc6 {[%emt 0:01:03]} bxc6 {[%emt 0:00:26]} 11. Bc1 {[%emt 0:06:23]} Ba6 {[%emt 0:05:48]} 12. Re1 {[%emt 0:00:14]} Nd7 {[%emt 0:02:15]} 13. e3 {[%emt 0:01:10]} e6 {[%emt 0:01:06]} 14. Nc3 {[%emt 0:01:02]} c5 {[%emt 0:05:09]} 15. Na4 {[%emt 0:01:41]} Qc6 {[%emt 0:02:54]} 16. Nxc5 {[%emt 0:00:24]} Nxc5 {[%emt 0:00:09]} 17. dxc5 {[%emt 0:00:03]} Qxc5 {[%emt 0:00:09]} 18. Bd2 {[%emt 0:00:23]} Qb6 {[%emt 0:01:33]} 19. Bc3 {[%emt 0:03:54]} Bxc3 {[%emt 0:00:16]} 20. bxc3 {[%emt 0:00:01]} Qa5 {[%emt 0:01:20]} 21. Qd4 {[%emt 0:01:10]} Rfc8 {[%emt 0:03:01]} 22. Qb4 {[%emt 0:01:20]} Qc5 {[%emt 0:01:42]} 23. e4 {[%emt 0:00:40]} dxe4 {[%emt 0:01:30]} 24. Qxe4 {[%emt 0:01:49]} Rab8 {[%emt 0:01:05]} 25. Qf4 {[%emt 0:04:08]} Qxc3 {[%emt 0:03:34]} 26. Rac1 {[%emt 0:00:54]} Qa5 {[%emt 0:01:54]} 27. h4 {[%emt 0:02:34]} h5 {[%emt 0:04:58]} 28. Qd4 {[%emt 0:02:48]} Qb6 {[%emt 0:03:57]} 29. Qxb6 {[%emt 0:04:25]} axb6 {[%emt 0:01:31]} 30. Rxc8+ {[%emt 0:04:16]} Bxc8 {[%emt 0:01:58]} 31. Re3 {[%emt 0:00:18]} Ba6 {[%emt 0:01:19]} 32. Rc3 {[%emt 0:01:07]} Rd8 {[%emt 0:04:32]} 33. Bf3 {[%emt 0:00:33]} Rd3 {[%emt 0:04:44]} 34. Rxd3 {[%emt 0:01:35]} Bxd3 {[%emt 0:00:04]} 35. Bc6 {[%emt 0:00:10]} Bc4 {[%emt 0:00:59]} 36. a3 {[%emt 0:00:01]} Kg7 {[%emt 0:01:29]} 37. f4 {[%emt 0:00:03]} Kf6 {[%emt 0:00:31]} 38. Kf2 {[%emt 0:00:05]} Bd5 {[%emt 0:03:13]} 39. Bb5 {[%emt 0:00:01]} e5 {[%emt 0:00:45]} 40. fxe5+ {[%emt 0:00:14]} Kxe5 {[%emt 0:00:02]} 41. Ke3 {[%emt 0:00:31]} Kf5 {[%emt 0:01:07]} 42. Be2 {[%emt 0:00:00]} Ke5 {[%emt 0:01:09]} 43. Bd1 {[%emt 0:00:39]} Be6 {[%emt 0:00:44]} 44. Bf3 {[%emt 0:00:14]} Bg4 {[%emt 0:00:48]} 45. Bc6 {[%emt 0:00:12]} f6 {[%emt 0:01:33]} 46. Bg2 {[%emt 0:03:34]} Bf5 {[%emt 0:01:32]} 47. Bf3 {[%emt 0:00:11]} Bg4 {[%emt 0:01:22]} 48. Bg2 {[%emt 0:00:14]} g5 {[%emt 0:00:17]} 49. hxg5 {[%emt 0:00:13]} fxg5 {[%emt 0:00:09]} 50. Bh1 {[%emt 0:00:04]} Be6 {[%emt 0:00:42]} 51. Bf3 {[%emt 0:00:48]} h4 {[%emt 0:03:01]} 52. gxh4 {[%emt 0:00:10]} gxh4 {[%emt 0:00:09]} 53. Kf2 {[%emt 0:00:30]} Bd7 {[%emt 0:00:50]} 54. Ke3 {[%emt 0:00:04]} Be6 {[%emt 0:00:55]} 55. Kf2 {[%emt 0:00:29]} Kd4 {[%emt 0:00:26]} 56. Bc6 {[%emt 0:00:11]} Kc3 {[%emt 0:00:47]} 57. Kg2 {[%emt 0:00:28]} Kc4 {[%emt 0:00:38]} 58. Kh2 {[%emt 0:00:11]} Kc5 {[%emt 0:00:28]} 59. Be8 {[%emt 0:00:10]} Kd6 {[%emt 0:00:21]} 60. Bb5 {[%emt 0:00:22]} Bd7 {[%emt 0:00:29]} 61. Be2 {[%emt 0:00:11]} Kc5 {[%emt 0:00:30]} 62. Bd3 {[%emt 0:00:12]} Kd4 {[%emt 0:00:09]} 0-1

[Event "SVK Amateur-ch 2020"]
[Site "Topolcany"]
[Date "2020.07.13"]
[Round "7.3"]
[White "Juan Lepp, Jaime Boris"]
[Black "Podoba, Milan"]
[Result "0-1"]
[ECO "C11"]
[WhiteElo "1853"]
[BlackElo "2027"]
[Annotator "RC"]
[PlyCount "78"]
[EventDate "2020.07.10"]
[EventType "swiss"]
[EventCountry "SVK"]
[SourceTitle "playchess.com"]
[Source "ChessBase"]
[SourceQuality "1"]
[TimeControl "3600+30"]

1. e4 {[%emt 0:00:00]} e6 {[%emt 0:00:00]} 2. Nf3 {[%emt 0:00:00]} d5 {[%emt 0:00:00]} 3. Nc3 {[%emt 0:00:00]} Nf6 {[%emt 0:00:07]} 4. e5 {[%emt 0:00:00]} Nfd7 {[%emt 0:00:06]} 5. d4 {[%emt 0:00:10]} c5 {[%emt 0:00:10]} 6. Bg5 {[%emt 0:00:09]} Qb6 {[%emt 0:02:05]} 7. dxc5 {[%emt 0:01:17]} Bxc5 {[%emt 0:01:54]} 8. Qd2 {[%emt 0:00:32]} Nc6 {[%emt 0:05:27]} 9. Na4 {[%emt 0:01:24]} Qb4 {[%emt 0:01:53]} 10. Nxc5 {[%emt 0:01:06]} Qxd2+ {[%emt 0:00:47]} 11. Nxd2 {[%emt 0:00:54]} Nxc5 {[%emt 0:00:12]} 12. Bb5 {[%emt 0:00:28]} Bd7 {[%emt 0:03:03]} 13. Bxc6 {[%emt 0:00:33]} Bxc6 {[%emt 0:00:13]} 14. O-O {[%emt 0:00:28]} Rc8 {[%emt 0:02:54]} 15. f3 {[%emt 0:04:10]} Bb5 {[%emt 0:02:24]} 16. Rfe1 {[%emt 0:06:12]} Rc7 {[%emt 0:04:52]} 17. Rac1 {[%emt 0:01:38]} Kd7 {[%emt 0:04:57]} 18. Nb3 {[%emt 0:01:38]} Na4 {[%emt 0:01:26]} 19. Nd4 {[%emt 0:01:29]} Ba6 {[%emt 0:00:09]} 20. b3 {[%emt 0:02:03]} Nc3 {[%emt 0:00:07]} 21. a4 {[%emt 0:01:18]} Na2 {[%emt 0:04:31]} 22. Rcd1 {[%emt 0:05:00]} Nc3 {[%emt 0:03:44]} 23. Rc1 {[%emt 0:01:11]} Rhc8 {[%emt 0:03:29]} 24. Kf2 {[%emt 0:03:18]} Ke8 {[%emt 0:02:26]} 25. b4 {[%emt 0:06:31]} Rc4 {[%emt 0:03:58]} 26. b5 {[%emt 0:02:41]} Rxd4 {[%emt 0:00:47]} 27. bxa6 {[%emt 0:00:12]} bxa6 {[%emt 0:00:45]} 28. Kg1 {[%emt 0:03:51]} Rxa4 {[%emt 0:02:19]} 29. Ra1 {[%emt 0:00:46]} Rcc4 {[%emt 0:01:07]} 30. Bd2 {[%emt 0:01:22]} Nb5 {[%emt 0:01:49]} 31. Rxa4 {[%emt 0:01:35]} Rxa4 {[%emt 0:00:06]} 32. Rc1 {[%emt 0:05:20]} Rc4 {[%emt 0:05:42]} 33. Kf2 {[%emt 0:01:41]} Nd4 {[%emt 0:01:27]} 34. c3 {[%emt 0:00:42]} Nb3 {[%emt 0:00:11]} 35. Rd1 {[%emt 0:00:11]} Nxd2 {[%emt 0:00:16]} 36. Rxd2 {[%emt 0:00:30]} Rxc3 {[%emt 0:00:15]} 37. Ra2 {[%emt 0:00:00]} Rc6 {[%emt 0:00:06]} 38. Ke3 {[%emt 0:00:15]} Kd7 {[%emt 0:00:14]} 39. g3 {[%emt 0:00:30]} Kc7 {[%emt 0:00:11]} 0-1

[Event "SVK Amateur-ch 2020"]
[Site "Topolcany"]
[Date "2020.07.13"]
[Round "7.4"]
[White "Vargyas, Zoltan"]
[Black "Gyurika, Tamas"]
[Result "1/2-1/2"]
[ECO "A38"]
[WhiteElo "2023"]
[BlackElo "1851"]
[Annotator "RC"]
[PlyCount "46"]
[EventDate "2020.07.10"]
[EventType "swiss"]
[EventCountry "SVK"]
[SourceTitle "playchess.com"]
[Source "ChessBase"]
[SourceQuality "1"]
[TimeControl "3600+30"]

1. c4 {[%emt 0:00:00]} c5 {[%emt 0:00:00]} 2. Nf3 {[%emt 0:00:00]} Nc6 {[%emt 0:00:00]} 3. Nc3 {[%emt 0:00:08]} Nf6 {[%emt 0:00:13]} 4. g3 {[%emt 0:00:11]} g6 {[%emt 0:00:27]} 5. Bg2 {[%emt 0:00:08]} Bg7 {[%emt 0:00:30]} 6. d4 {[%emt 0:00:19]} d6 {[%emt 0:00:13]} 7. dxc5 {[%emt 0:01:43]} dxc5 {[%emt 0:00:22]} 8. Be3 {[%emt 0:00:17]} Qb6 {[%emt 0:01:37]} 9. O-O {[%emt 0:04:31]} O-O {[%emt 0:03:13]} 10. Na4 {[%emt 0:02:45]} Qb4 {[%emt 0:00:49]} 11. b3 {[%emt 0:06:00]} Ne4 {[%emt 0:01:22]} 12. Ne1 {[%emt 0:11:45]} Nc3 {[%emt 0:03:41]} 13. Nxc3 {[%emt 0:02:59]} Bxc3 {[%emt 0:00:13]} 14. Nd3 {[%emt 0:00:59]} Qa5 {[%emt 0:00:21]} 15. Rc1 {[%emt 0:08:15]} Nd4 {[%emt 0:00:59]} 16. Nxc5 {[%emt 0:01:21]} Rd8 {[%emt 0:00:54]} 17. Bd5 {[%emt 0:06:53]} Rxd5 {[%emt 0:04:15]} 18. cxd5 {[%emt 0:00:43]} Qxc5 {[%emt 0:00:19]} 19. Rxc3 {[%emt 0:05:43]} Nxe2+ {[%emt 0:01:05]} 20. Qxe2 {[%emt 0:00:18]} Qxc3 {[%emt 0:00:05]} 21. Rc1 {[%emt 0:01:30]} Qe5 {[%emt 0:01:08]} 22. Qf3 {[%emt 0:03:32]} Bf5 {[%emt 0:01:01]} 23. Bf4 {[%emt 0:04:37]} Be4 {[%emt 0:02:18]} 1/2-1/2

[Event "SVK Amateur-ch 2020"]
[Site "Topolcany"]
[Date "2020.07.13"]
[Round "7.5"]
[White "Juan Mas, Santiago"]
[Black "Kovarikova, Maria"]
[Result "1-0"]
[ECO "A08"]
[WhiteElo "1983"]
[BlackElo "1844"]
[Annotator "ChessBase"]
[PlyCount "35"]
[EventDate "2020.07.10"]
[EventType "swiss"]
[EventCountry "SVK"]
[SourceTitle "playchess.com"]
[Source "ChessBase"]
[SourceQuality "1"]
[TimeControl "3600+30"]

1. e4 {[%emt 0:00:00]} c5 {[%emt 0:00:00]} 2. Nf3 {[%emt 0:00:00]} e6 {[%emt 0:00:00]} 3. d3 {[%emt 0:01:59]} Nc6 {[%emt 0:00:09]} 4. g3 {[%emt 0:00:08]} d5 {[%emt 0:01:41]} 5. Nbd2 {[%emt 0:00:08]} Bd6 {[%emt 0:01:35]} 6. Bg2 {[%emt 0:00:24]} Nge7 {[%emt 0:00:43]} 7. O-O {[%emt 0:00:32]} Bd7 {[%emt 0:05:12]} 8. Re1 {[%emt 0:00:33]} Qc7 {[%emt 0:02:29]} 9. exd5 {[%emt 0:11:43]} exd5 {[%emt 0:07:10]} 10. c4 {[%emt 0:00:48]} O-O-O {[%emt 0:01:07]} 11. cxd5 {[%emt 0:01:32]} Nb4 {[%emt 0:09:39]} 12. Nc4 {[%emt 0:01:38]} Nbxd5 {[%emt 0:06:24]} 13. Ng5 {[%emt 0:04:23]} Rdf8 {[%emt 0:02:31]} 14. Ne4 {[%emt 0:01:03]} Kb8 {[%emt 0:10:14]} 15. Nexd6 {[%emt 0:02:20]} f5 {[%emt 0:04:08]} 16. Rxe7 {[%emt 0:02:14]} Nxe7 {[%emt 0:00:24]} 17. Bf4 {[%emt 0:00:06]} Ng6 {[%emt 0:02:36]} 18. Nb5 {[%emt 0:00:45]} 1-0

[Event "SVK Amateur-ch 2020"]
[Site "Topolcany"]
[Date "2020.07.13"]
[Round "7.6"]
[White "Szocs, Ladislav"]
[Black "Chlpek, Daniel"]
[Result "1/2-1/2"]
[ECO "D11"]
[WhiteElo "1791"]
[BlackElo "1982"]
[Annotator "ChessBase"]
[PlyCount "20"]
[EventDate "2020.07.10"]
[EventType "swiss"]
[EventCountry "SVK"]
[SourceTitle "playchess.com"]
[Source "ChessBase"]
[SourceQuality "1"]
[TimeControl "3600+30"]

1. Nf3 {[%emt 0:00:30]} d5 {[%emt 0:05:18]} 2. g3 {[%emt 0:00:00]} Bg4 {[%emt 0:00:05]} 3. Ne5 {[%emt 0:00:37]} Bf5 {[%emt 0:00:07]} 4. Bg2 {[%emt 0:00:22]} c6 {[%emt 0:00:04]} 5. O-O {[%emt 0:00:41]} Nf6 {[%emt 0:00:04]} 6. d4 {[%emt 0:00:50]} e6 {[%emt 0:00:05]} 7. c4 {[%emt 0:01:13]} Be7 {[%emt 0:00:12]} 8. Nc3 {[%emt 0:00:38]} Nbd7 {[%emt 0:00:07]} 9. Qb3 {[%emt 0:03:00]} Qb6 {[%emt 0:00:12]} 10. c5 {[%emt 0:07:26]} Qxb3 {[%emt 0:00:07]} 1/2-1/2

[Event "SVK Amateur-ch 2020"]
[Site "Topolcany"]
[Date "2020.07.13"]
[Round "7.7"]
[White "Meszarosova, Eva"]
[Black "Pasztor, Ladislav"]
[Result "1-0"]
[ECO "B80"]
[WhiteElo "1976"]
[BlackElo "1799"]
[Annotator "ChessBase"]
[PlyCount "83"]
[EventDate "2020.07.10"]
[EventType "swiss"]
[EventCountry "SVK"]
[SourceTitle "playchess.com"]
[Source "ChessBase"]
[SourceQuality "1"]
[TimeControl "3600+30"]

1. e4 {[%emt 0:00:00]} c5 {[%emt 0:00:00]} 2. Nf3 {[%emt 0:00:00]} d6 {[%emt 0:00:00]} 3. d4 {[%emt 0:00:00]} cxd4 {[%emt 0:00:00]} 4. Nxd4 {[%emt 0:00:04]} Nf6 {[%emt 0:00:03]} 5. Nc3 {[%emt 0:00:07]} a6 {[%emt 0:00:07]} 6. Be3 {[%emt 0:00:12]} e6 {[%emt 0:03:18]} 7. f3 {[%emt 0:00:11]} Be7 {[%emt 0:02:52]} 8. Qd2 {[%emt 0:00:11]} Bd7 {[%emt 0:05:02]} 9. O-O-O {[%emt 0:00:23]} Qc7 {[%emt 0:00:50]} 10. g4 {[%emt 0:01:15]} h6 {[%emt 0:02:52]} 11. Bd3 {[%emt 0:01:41]} Nc6 {[%emt 0:06:38]} 12. h4 {[%emt 0:01:59]} O-O-O {[%emt 0:02:01]} 13. Qf2 {[%emt 0:01:43]} Rdg8 {[%emt 0:02:03]} 14. Kb1 {[%emt 0:04:20]} Ne5 {[%emt 0:03:07]} 15. Qe2 {[%emt 0:02:28]} Kb8 {[%emt 0:03:25]} 16. g5 {[%emt 0:09:50]} hxg5 {[%emt 0:07:26]} 17. hxg5 {[%emt 0:00:08]} Ne8 {[%emt 0:00:20]} 18. f4 {[%emt 0:00:22]} Nxd3 {[%emt 0:00:14]} 19. Qxd3 {[%emt 0:00:10]} g6 {[%emt 0:01:26]} 20. Nb3 {[%emt 0:02:15]} Bc6 {[%emt 0:04:36]} 21. Qd4 {[%emt 0:03:47]} Rxh1 {[%emt 0:03:41]} 22. Rxh1 {[%emt 0:00:27]} b5 {[%emt 0:02:24]} 23. Rh7 {[%emt 0:03:02]} Bf8 {[%emt 0:00:49]} 24. e5 {[%emt 0:08:48]} dxe5 {[%emt 0:02:01]} 25. fxe5 {[%emt 0:01:19]} Bg7 {[%emt 0:00:53]} 26. Nc5 {[%emt 0:01:59]} Bb7 {[%emt 0:02:03]} 27. Nd7+ {[%emt 0:02:28]} Kc8 {[%emt 0:00:39]} 28. Nf6 {[%emt 0:02:49]} Bxf6 {[%emt 0:04:04]} 29. gxf6 {[%emt 0:01:05]} Qd7 {[%emt 0:01:49]} 30. Qxd7+ {[%emt 0:00:54]} Kxd7 {[%emt 0:00:06]} 31. Rxf7+ {[%emt 0:00:09]} Kc6 {[%emt 0:00:21]} 32. Re7 {[%emt 0:01:42]} Nc7 {[%emt 0:00:26]} 33. Rg7 {[%emt 0:01:18]} Rh8 {[%emt 0:00:30]} 34. Rxg6 {[%emt 0:01:39]} Nd5 {[%emt 0:01:06]} 35. Bh6 {[%emt 0:08:52]} Nxc3+ {[%emt 0:02:10]} 36. bxc3 {[%emt 0:00:19]} Kd7 {[%emt 0:00:59]} 37. Rg7+ {[%emt 0:00:48]} Ke8 {[%emt 0:01:30]} 38. Re7+ {[%emt 0:00:40]} Kd8 {[%emt 0:00:17]} 39. Bg7 {[%emt 0:00:17]} Rh1+ {[%emt 0:01:00]} 40. Kb2 {[%emt 0:00:02]} Bc8 {[%emt 0:00:29]} 41. f7 {[%emt 0:00:38]} Rf1 {[%emt 0:01:17]} 42. Bf6 {[%emt 0:00:21]} 1-0

[Event "SVK Amateur-ch 2020"]
[Site "Topolcany"]
[Date "2020.07.13"]
[Round "7.8"]
[White "Kukan, Michal"]
[Black "Redzisz, Michal"]
[Result "0-1"]
[ECO "A08"]
[WhiteElo "1769"]
[BlackElo "1972"]
[Annotator "ChessBase"]
[PlyCount "100"]
[EventDate "2020.07.10"]
[EventType "swiss"]
[EventCountry "SVK"]
[SourceTitle "playchess.com"]
[Source "ChessBase"]
[SourceQuality "1"]
[TimeControl "3600+30"]

1. Nf3 {[%emt 0:00:00]} d5 {[%emt 0:00:00]} 2. g3 {[%emt 0:00:00]} c5 {[%emt 0:00:00]} 3. Bg2 {[%emt 0:00:10]} Nc6 {[%emt 0:00:21]} 4. O-O {[%emt 0:00:19]} e5 {[%emt 0:01:08]} 5. d3 {[%emt 0:00:33]} Nf6 {[%emt 0:02:10]} 6. Re1 {[%emt 0:00:25]} Be7 {[%emt 0:00:57]} 7. Nc3 {[%emt 0:00:51]} d4 {[%emt 0:01:27]} 8. Nb5 {[%emt 0:03:02]} a6 {[%emt 0:03:31]} 9. Na3 {[%emt 0:00:17]} Be6 {[%emt 0:00:45]} 10. e3 {[%emt 0:01:25]} O-O {[%emt 0:02:38]} 11. Ng5 {[%emt 0:00:41]} dxe3 {[%emt 0:02:27]} 12. fxe3 {[%emt 0:02:51]} Bg4 {[%emt 0:01:33]} 13. Qd2 {[%emt 0:01:07]} h6 {[%emt 0:05:43]} 14. Nh3 {[%emt 0:03:17]} Qd7 {[%emt 0:03:09]} 15. Nf2 {[%emt 0:00:24]} Be6 {[%emt 0:00:03]} 16. b3 {[%emt 0:03:41]} Rad8 {[%emt 0:11:15]} 17. Bb2 {[%emt 0:01:18]} b5 {[%emt 0:02:39]} 18. Qe2 {[%emt 0:05:47]} Bd6 {[%emt 0:06:53]} 19. Rad1 {[%emt 0:00:58]} Nb4 {[%emt 0:03:20]} 20. d4 {[%emt 0:05:01]} cxd4 {[%emt 0:05:12]} 21. exd4 {[%emt 0:00:27]} exd4 {[%emt 0:01:09]} 22. Bxd4 {[%emt 0:00:39]} Nbd5 {[%emt 0:04:59]} 23. c4 {[%emt 0:01:57]} Bxa3 {[%emt 0:03:29]} 24. Bxf6 {[%emt 0:00:23]} gxf6 {[%emt 0:00:26]} 25. cxd5 {[%emt 0:00:22]} Bf5 {[%emt 0:00:12]} 26. Qf3 {[%emt 0:01:55]} Bc5 {[%emt 0:02:28]} 27. Kh1 {[%emt 0:00:41]} Rfe8 {[%emt 0:01:19]} 28. Ne4 {[%emt 0:03:52]} Bxe4 {[%emt 0:00:34]} 29. Rxe4 {[%emt 0:00:16]} Rxe4 {[%emt 0:00:06]} 30. Qxe4 {[%emt 0:00:21]} Re8 {[%emt 0:01:01]} 31. Qh4 {[%emt 0:02:03]} Qf5 {[%emt 0:02:50]} 32. Qxh6 {[%emt 0:00:47]} Qf2 {[%emt 0:00:43]} 33. Qf4 {[%emt 0:08:47]} Qxf4 {[%emt 0:01:15]} 34. gxf4 {[%emt 0:00:19]} Bd6 {[%emt 0:00:02]} 35. Kg1 {[%emt 0:02:08]} Re2 {[%emt 0:00:48]} 36. a4 {[%emt 0:00:44]} bxa4 {[%emt 0:00:25]} 37. bxa4 {[%emt 0:00:15]} Ra2 {[%emt 0:00:32]} 38. Rc1 {[%emt 0:00:55]} Bxf4 {[%emt 0:00:42]} 39. Rc8+ {[%emt 0:01:23]} Kg7 {[%emt 0:00:03]} 40. Rc4 {[%emt 0:00:41]} Be3+ {[%emt 0:00:04]} 41. Kf1 {[%emt 0:01:41]} Rf2+ {[%emt 0:00:01]} 42. Ke1 {[%emt 0:00:32]} Rxg2 {[%emt 0:00:03]} 43. d6 {[%emt 0:00:32]} Rd2 {[%emt 0:01:15]} 44. Re4 {[%emt 0:00:33]} Bh6 {[%emt 0:00:16]} 45. Rb4 {[%emt 0:01:54]} Rxd6 {[%emt 0:00:10]} 46. Ke2 {[%emt 0:00:33]} Rd2+ {[%emt 0:00:18]} 47. Kf3 {[%emt 0:00:12]} Rxh2 {[%emt 0:00:14]} 48. Rb6 {[%emt 0:00:15]} a5 {[%emt 0:00:14]} 49. Rb5 {[%emt 0:00:08]} Bd2 {[%emt 0:01:01]} 50. Rb2 {[%emt 0:00:23]} Rh3+ {[%emt 0:00:36]} 0-1

[Event "SVK Amateur-ch 2020"]
[Site "Topolcany"]
[Date "2020.07.13"]
[Round "7.9"]
[White "Lach, Piotr"]
[Black "Bochnicka, Vladimir"]
[Result "0-1"]
[ECO "B30"]
[WhiteElo "2086"]
[BlackElo "2123"]
[Annotator "RC"]
[PlyCount "92"]
[EventDate "2020.07.10"]
[EventType "swiss"]
[EventCountry "SVK"]
[SourceTitle "playchess.com"]
[Source "ChessBase"]
[SourceQuality "1"]
[TimeControl "3600+30"]

1. e4 {[%emt 0:00:00]} c5 {[%emt 0:00:00]} 2. Nf3 {[%emt 0:00:00]} Nc6 {[%emt 0:00:00]} 3. Bb5 {[%emt 0:00:00]} Nf6 {[%emt 0:00:00]} 4. Nc3 {[%emt 0:00:00]} g6 {[%emt 0:00:00]} 5. e5 {[%emt 0:01:04]} Ng4 {[%emt 0:00:00]} 6. Bxc6 {[%emt 0:00:11]} dxc6 {[%emt 0:00:06]} 7. h3 {[%emt 0:00:19]} Nh6 {[%emt 0:00:08]} 8. g4 {[%emt 0:00:30]} Bg7 {[%emt 0:00:19]} 9. d3 {[%emt 0:02:28]} O-O {[%emt 0:00:09]} 10. Be3 {[%emt 0:04:07]} f6 {[%emt 0:03:36]} 11. exf6 {[%emt 0:13:44]} exf6 {[%emt 0:00:56]} 12. Bxc5 {[%emt 0:00:31]} Re8+ {[%emt 0:00:06]} 13. Kf1 {[%emt 0:00:30]} f5 {[%emt 0:02:19]} 14. g5 {[%emt 0:01:50]} Nf7 {[%emt 0:00:44]} 15. Be3 {[%emt 0:05:14]} b6 {[%emt 0:02:00]} 16. Bf4 {[%emt 0:06:57]} Bb7 {[%emt 0:01:57]} 17. h4 {[%emt 0:01:04]} c5 {[%emt 0:02:56]} 18. Rh3 {[%emt 0:01:08]} Qd7 {[%emt 0:02:13]} 19. a4 {[%emt 0:07:16]} Qc6 {[%emt 0:21:01]} 20. Qd2 {[%emt 0:01:12]} c4 {[%emt 0:01:39]} 21. d4 {[%emt 0:01:40]} Rad8 {[%emt 0:00:53]} 22. d5 {[%emt 0:01:47]} Bxc3 {[%emt 0:05:49]} 23. Qxc3 {[%emt 0:00:02]} Qxd5 {[%emt 0:00:30]} 24. h5 {[%emt 0:01:57]} gxh5 {[%emt 0:01:56]} 25. Re1 {[%emt 0:10:08]} Re6 {[%emt 0:07:29]} 26. Rxe6 {[%emt 0:00:47]} Qxe6 {[%emt 0:00:02]} 27. Qe3 {[%emt 0:03:41]} Qxe3 {[%emt 0:02:04]} 28. Bxe3 {[%emt 0:00:11]} Be4 {[%emt 0:02:23]} 29. a5 {[%emt 0:01:23]} bxa5 {[%emt 0:00:28]} 30. Bxa7 {[%emt 0:00:33]} Bxc2 {[%emt 0:01:26]} 31. Bb6 {[%emt 0:03:29]} Rd5 {[%emt 0:01:04]} 32. Nd4 {[%emt 0:00:37]} Bd3+ {[%emt 0:00:52]} 33. Ke1 {[%emt 0:00:05]} Nxg5 {[%emt 0:01:36]} 34. Rxh5 {[%emt 0:00:09]} f4 {[%emt 0:00:10]} 35. Rh6 {[%emt 0:01:11]} Rxd4 {[%emt 0:01:06]} 36. Bxd4 {[%emt 0:00:01]} Nf3+ {[%emt 0:00:08]} 37. Kd1 {[%emt 0:00:06]} Nxd4 {[%emt 0:00:03]} 38. Rf6 {[%emt 0:00:32]} Nf5 {[%emt 0:01:45]} 39. Ra6 {[%emt 0:00:14]} h5 {[%emt 0:00:38]} 40. Rxa5 {[%emt 0:00:20]} h4 {[%emt 0:00:12]} 41. Ra8+ {[%emt 0:01:13]} Kg7 {[%emt 0:00:08]} 42. f3 {[%emt 0:00:35]} h3 {[%emt 0:00:16]} 43. Ra7+ {[%emt 0:00:13]} Kg6 {[%emt 0:00:06]} 44. Kd2 {[%emt 0:00:44]} h2 {[%emt 0:00:08]} 45. Ra1 {[%emt 0:00:11]} Ng3 {[%emt 0:00:16]} 46. b4 {[%emt 0:00:06]} Nf1+ {[%emt 0:00:13]} 0-1